[Event "Susha Chess Blitz 2022"]
[Site "Shusha"]
[Date "2022.09.24"]
[Round "12"]
[White "Guseinov, Gadir"]
[Black "Yilmaz, Mustafa"]
[Result "1-0"]
[ECO "B54"]
[WhiteElo "2661"]
[BlackElo "2633"]
[Annotator "TA"]
[PlyCount "79"]
[EventDate "2022.09.24"]
[EventType "tourn"]
[EventCountry "AZE"]
[SourceTitle "playchess.com"]
[Source "ChessBase"]
[SourceQuality "1"]
[TimeControl "180+2"]

{[%evp 9,79,4,14,0,10,1,21,10,16,8,17,5,22,7,20,35,57,64,431,430,441,425,436,437,422,415,623,334,310,299,335,329,314,323,298,309,390,370,411,282,398,359,349,281,293,248,372,355,404,402,466,350,355,355,403,355,391,271,340,329,458,409,409,409,503,495,611,589,682,674,5581,5477]} 1. e4 {[%emt 0:00:01]} c5 {[%emt 0:00:00]} 2. Nf3 {[%emt 0:00:02]} d6 {[%emt 0:00:01]} 3. d4 {[%emt 0:00:01]} cxd4 {[%emt 0:00:02]} 4. Nxd4 {[%emt 0:00:01]} Nf6 {[%emt 0:00:01]} 5. Bb5+ {[%emt 0:00:01]} Nbd7 {[%emt 0:00:24]} 6. Bd3 {[%emt 0:00:03] B55: Sicilian: 2...d6 3 d4 cxd4 4 Nxd4 Nf6 5 f3.} Nc5 {[%emt 0:00:12]} 7. Nc3 {[%emt 0:00:11]} a6 {[%emt 0:00:19]} 8. O-O {[%emt 0:00:01] The position is equal.} g6 {[%emt 0:00:12]} 9. Re1 {[%emt 0:00:06]} Bg7 {[%emt 0:00:01]} 10. Bf1 {[%emt 0:00:01]} O-O {[%emt 0:00:02] [#]} 11. Bg5 $5 $146 {[%emt 0:00:01][%mdl 8] New and interesting.} ({Predecessor:} 11. f3 Bd7 12. g3 Qb6 13. Qd2 e5 14. Nde2 Nb3+ 15. Qe3 Qxe3+ 16. Bxe3 Nxa1 17. Rxa1 {0-1 (26) Nakamura,J-Cabral,D (1958) Birigui 2008}) 11... b5 {[%emt 0:00:31]} 12. Nc6 {[%emt 0:00:13]} Qd7 {[%emt 0:00:30]} 13. Nd5 {[%emt 0:00:03]} Re8 {[%emt 0:00:07][%mdl 8192] Loses the game.} (13... Nxd5 $1 $14 14. exd5 (14. Qxd5 $2 e6 $19) 14... e6) 14. Ncxe7+ $1 $18 {[%emt 0:00:09]} Rxe7 {[%emt 0:00:02]} 15. Bxf6 {[%emt 0:00:05]} Re5 {[%emt 0:00:42]} 16. Bxg7 {[%emt 0:00:16]} ({Don't take} 16. Nb6 Qc6 $18) 16... Kxg7 {[%emt 0:00:02]} 17. Nb6 {[%emt 0:00:00][%csl LRa8,LRd7]} Qa7 {[%emt 0:00:06]} (17... Qc6 $142) 18. Nxa8 {[%emt 0:00:02]} Nxe4 {[%emt 0:00:02] [#]} 19. Qf3 {[%emt 0:00:41]} Qxa8 {[%emt 0:00:05]} 20. Bd3 {[%emt 0:00:09][%cal Rd3e4]} Bb7 {[%emt 0:00:00]} 21. Bxe4 {[%emt 0:00:04]} Bxe4 {[%emt 0:00:02]} 22. Qc3 {[%emt 0:00:00] Threatens to win with f4.} Kg8 {[%emt 0:00:10]} 23. f3 {[%emt 0:00:01]} Rc5 {[%emt 0:00:01]} 24. Qd4 {[%emt 0:00:04]} ({And not} 24. Rxe4 Rxc3 25. bxc3 Qa7+ 26. Kh1 d5 $15) 24... Bc6 {[%emt 0:00:08]} (24... Bf5 {keeps fighting.} 25. Rad1 Qf8) 25. c3 {[%emt 0:00:10]} Rd5 {[%emt 0:00:04]} 26. Qf4 {[%emt 0:00:06]} Qa7+ {[%emt 0:00:02]} 27. Qe3 {[%emt 0:00:07]} Qc7 {[%emt 0:00:05]} (27... Qxe3+ $142 28. Rxe3 Rd2) 28. Rad1 {[%emt 0:00:02]} Re5 {[%emt 0:00:02]} 29. Qd4 {[%emt 0:00:00] [#] Strongly threatening Rxe5.} Rd5 {[%emt 0:00:01]} 30. Qf2 {[%emt 0:00:01] Black must now prevent Rxd5.} Rf5 {[%emt 0:00:01]} 31. a3 {[%emt 0:00:06]} h5 {[%emt 0:00:01]} 32. h4 {[%emt 0:00:00]} Kh7 {[%emt 0:00:01]} 33. Qg3 {[%emt 0:00:03]} Qb6+ {[%emt 0:00:05]} 34. Kh2 {[%emt 0:00:01]} d5 {[%emt 0:00:02]} 35. Rd4 {[%emt 0:00:02][%cal Bd1d4,Bd4f4,Bf4f6,Bf6c6][%mdl 32] And now Qd6 would win.} Qd8 {[%emt 0:00:01] Prevents Qd6.} 36. Re5 {[%emt 0:00:04]} Rxe5 {[%emt 0:00:03]} 37. Qxe5 {[%emt 0:00:01] White is clearly winning.} Kg8 {[%emt 0:00:03]} 38. Rf4 {[%emt 0:00:01]} Be8 {[%emt 0:00:01]} 39. Rf6 {[%emt 0:00:05]} Bc6 {[%emt 0:00:03]} 40. Rxc6 {[%emt 0:00:06] Weighted Error Value: White=0.31/Black=0.61} 1-0

[Event "Susha Chess Blitz 2022"]
[Site "Shusha"]
[Date "2022.09.24"]
[Round "12"]
[White "Mamedov, Rauf"]
[Black "Maghsoodloo, Parham"]
[Result "0-1"]
[ECO "B50"]
[WhiteElo "2646"]
[BlackElo "2721"]
[Annotator "TA"]
[PlyCount "101"]
[EventDate "2022.09.24"]
[EventType "tourn"]
[EventCountry "AZE"]
[SourceTitle "playchess.com"]
[Source "ChessBase"]
[SourceQuality "1"]
[TimeControl "180+2"]

{[%evp 9,101,0,0,-15,0,7,4,8,45,9,12,0,0,-18,0,-18,-18,-22,0,0,22,8,38,46,53,64,70,72,102,107,138,115,140,107,97,100,100,72,70,66,54,11,14,12,16,0,0,0,0,0,0,0,0,0,0,0,0,0,0,0,0,0,0,0,0,-7,0,0,0,0,0,0,0,-20,0,-18,-8,-11,-4,-12,-2,-6,-18,-28,0,0,0,0,0,0,0,-32,-44,-145]} 1. e4 {[%emt 0:00:00]} c5 {[%emt 0:00:00]} 2. Nf3 {[%emt 0:00:03]} d6 {[%emt 0:00:03]} 3. Nc3 {[%emt 0:00:01]} a6 {[%emt 0:00:14]} 4. g3 {[%emt 0:00:01]} e5 {[%emt 0:00:26]} 5. a3 {[%emt 0:00:07]} Nc6 {[%emt 0:00:08]} 6. b4 {[%emt 0:00:01] B50: Sicilian: 2...d6, Miscellaneous.} g6 {[%emt 0:00:08]} 7. Rb1 {[%emt 0:00:09]} Bg7 {[%emt 0:00:16]} 8. Bg2 {[%emt 0:00:07] The position is equal.} Nge7 {[%emt 0:00:02]} 9. O-O {[%emt 0:00:02]} b5 {[%emt 0:00:08]} 10. d3 {[%emt 0:00:10]} O-O {[%emt 0:00:08] [#]} 11. Be3 $146 {[%emt 0:00:09]} ({Predecessor:} 11. Nd5 cxb4 12. axb4 Bg4 13. c3 Nxd5 14. exd5 Ne7 15. h3 Bd7 16. Qb3 Rc8 17. Bb2 {1-0 (36) Cao,S (2547)-Novita,A (2344) Tagaytay City 2011}) 11... Nd4 {[%emt 0:00:02]} 12. Nd2 {[%emt 0:00:00]} Be6 {[%emt 0:00:04]} 13. Nd5 {[%emt 0:00:08]} cxb4 {[%emt 0:00:16]} 14. axb4 {[%emt 0:00:07]} Rc8 {[%emt 0:00:02]} 15. c4 {[%emt 0:00:19]} (15. Bxd4 $5 exd4 16. Ra1 $11) 15... bxc4 {[%emt 0:00:02] [#] Hoping for ...c3.} 16. Bxd4 {[%emt 0:00:33] Threatens to win with Bb6.} exd4 {[%emt 0:00:03]} 17. Nxc4 {[%emt 0:00:02]} Nc6 {[%emt 0:00:11]} 18. Qa4 {[%emt 0:00:11]} Nb8 {[%emt 0:00:08]} 19. Rbc1 {[%emt 0:00:20]} Bd7 {[%emt 0:00:12]} 20. Qa5 {[%emt 0:00:08]} Bb5 {[%emt 0:00:01]} 21. Bh3 {[%emt 0:00:24]} Qxa5 {[%emt 0:00:05]} 22. bxa5 {[%emt 0:00:10]} Rcd8 {[%emt 0:00:01]} 23. Nc7 {[%emt 0:00:19] Pair of Knights!} Nc6 {[%emt 0:00:01][%cal Bb8c6,Bc6a5,Ba5b3][%mdl 32]} 24. Nxb5 {[%emt 0:00:08]} axb5 {[%emt 0:00:01]} 25. Na3 {[%emt 0:00:01]} Nxa5 {[%emt 0:00:03]} 26. Nxb5 {[%emt 0:00:01]} Nb3 {[%emt 0:00:16]} 27. Rc7 {[%emt 0:00:00]} d5 $1 {[%emt 0:00:02]} 28. exd5 {[%emt 0:00:09]} Rxd5 {[%emt 0:00:01]} 29. Na3 {[%emt 0:00:03][%cal Bb5a3,Ba3c4,Bc4d6][%mdl 32]} Rc5 {[%emt 0:00:02]} 30. Rxc5 {[%emt 0:00:05]} Nxc5 {[%emt 0:00:01]} 31. Rd1 {[%emt 0:00:01]} Rb8 {[%emt 0:00:07]} 32. Nc4 {[%emt 0:00:01]} h5 {[%emt 0:00:05]} 33. Bf1 {[%emt 0:00:03]} Rb3 {[%emt 0:00:01]} 34. Nd6 {[%emt 0:00:02]} f5 {[%emt 0:00:36]} 35. h4 {[%emt 0:00:01]} Bf6 {[%emt 0:00:06]} 36. Kg2 {[%emt 0:00:01]} Kf8 {[%emt 0:00:01]} 37. Nc4 {[%emt 0:00:02]} Rc3 {[%emt 0:00:02]} 38. Nb6 {[%emt 0:00:02]} Be5 {[%emt 0:00:06]} 39. Nc4 {[%emt 0:00:03]} Bc7 {[%emt 0:00:02]} 40. Kf3 {[%emt 0:00:03]} Kf7 {[%emt 0:00:02]} 41. Ke2 {[%emt 0:00:01]} Ke6 {[%emt 0:00:02]} 42. Bg2 {[%emt 0:00:01]} f4 {[%emt 0:00:01]} 43. gxf4 {[%emt 0:00:04]} Bxf4 {[%emt 0:00:01]} 44. Bc6 {[%emt 0:00:02]} g5 {[%emt 0:00:04]} 45. hxg5 {[%emt 0:00:01]} Bxg5 {[%emt 0:00:01][%cal Oc5d3]} 46. Bf3 {[%emt 0:00:03]} h4 {[%emt 0:00:02]} 47. Bg4+ {[%emt 0:00:01]} Ke7 {[%emt 0:00:04][%cal Oc5d3]} 48. Ne5 {[%emt 0:00:01]} Bf6 {[%emt 0:00:03]} 49. Nf3 {[%emt 0:00:01]} Kd6 {[%emt 0:00:02]} 50. Nd2 {[%emt 0:00:03]} Ke5 {[%emt 0:00:01]} 51. Bf3 {Weighted Error Value: White=0.08 (flawless) /Black=0.08 (flawless)} (51. f4+ $15 Kxf4 52. Bc8) 0-1

[Event "Susha Chess Blitz 2022"]
[Site "Shusha"]
[Date "2022.09.24"]
[Round "13"]
[White "Wang, Hao"]
[Black "Maghsoodloo, Parham"]
[Result "0-1"]
[ECO "B30"]
[WhiteElo "2722"]
[BlackElo "2721"]
[Annotator "TA"]
[PlyCount "100"]
[EventDate "2022.09.24"]
[EventType "tourn"]
[EventCountry "AZE"]
[SourceTitle "playchess.com"]
[Source "ChessBase"]
[SourceQuality "1"]
[TimeControl "180+2"]

{[%evp 9,100,16,17,36,33,11,25,0,-7,-16,-19,-12,-3,-20,-16,-101,-96,-164,-151,-164,-31,-36,-41,-44,-60,-40,-55,-50,-56,-50,-30,-59,-57,-97,-42,-80,-45,-95,-39,-55,0,-60,-58,-131,-122,-143,-103,-103,-99,-116,-116,-116,-105,-110,-100,-112,-37,-38,-38,-38,-38,-38,-38,-165,-124,-124,-83,-83,-83,-637,-637,-592,-584,-570,-521,-1297,-1207,-782,-835,-609,-396,-1502,-1052,-6030,-4843,-29969,-29969,-29950,-12805,-12789,-12180,-5712,-4622]} 1. e4 {[%emt 0:00:02]} c5 {[%emt 0:00:01]} 2. Nf3 {[%emt 0:00:01]} Nc6 {[%emt 0:00:01]} 3. Bb5 {[%emt 0:00:04][%cal Bf1b5,Bb5c4,Bc4d5][%mdl 32]} e5 {[%emt 0:00:01]} 4. O-O {[%emt 0:00:05]} Bd6 {[%emt 0:00:01]} 5. d4 {[%emt 0:00:05]} Nxd4 {[%emt 0:00:02]} 6. Bc4 {[%emt 0:00:05] Strongly threatening Ng5. B30: Sicilian: 2...Nc6 3 Bb5, lines without ...g6.} h6 {[%emt 0:00:01] [#] Against Ng5} 7. Nc3 $146 {[%emt 0:00:10]} ({Predecessor:} 7. c3 Nxf3+ 8. Qxf3 Nf6 9. Rd1 Bc7 10. Qg3 g5 11. b4 Qe7 12. Qd3 d6 13. a4 cxb4 14. cxb4 {0-1 (39) Sargsyan,S (2639)-Yuffa,D (2576) Terme Catez 2022}) 7... Nf6 {[%emt 0:00:15]} 8. Nd5 {[%emt 0:00:03] White has an edge.} b5 {[%emt 0:00:17]} ({Resist} 8... Nxe4 9. Nxd4 cxd4 10. Qg4 $16) 9. Nxd4 {[%emt 0:00:18]} cxd4 {[%emt 0:00:08]} 10. Nxf6+ {[%emt 0:00:24]} Qxf6 {[%emt 0:00:01]} 11. Bd5 {[%emt 0:00:10]} Rb8 {[%emt 0:00:01]} 12. a4 {[%emt 0:00:01]} (12. c3 $11 {remains equal.}) 12... b4 {[%emt 0:00:06]} 13. f4 {[%emt 0:00:17]} (13. Qd3 $17) 13... exf4 $19 {[%emt 0:00:04]} 14. g3 {[%emt 0:00:26][%cal Rc1f4]} Bb7 {[%emt 0:00:33]} (14... Ba6 $19 15. Rf2 g5) 15. Bxf4 $15 {[%emt 0:00:08]} Bxd5 {[%emt 0:00:02]} 16. exd5 {[%emt 0:00:15]} O-O {[%emt 0:00:02]} 17. Bxd6 {[%emt 0:00:02]} Qxd6 {[%emt 0:00:01]} 18. Qxd4 {[%emt 0:00:01]} a5 {[%emt 0:00:01]} 19. Rae1 {[%emt 0:00:08]} Rbc8 {[%emt 0:00:01]} 20. Re2 {[%emt 0:00:09]} Rc5 {[%emt 0:00:03]} 21. Rd2 {[%emt 0:00:06] [#]} Rfc8 {[%emt 0:00:03]} (21... Re8 $1 $17) 22. Rff2 {[%emt 0:00:02]} f6 {[%emt 0:00:07]} (22... Re8 {is interesting.} 23. c3 bxc3 24. bxc3 Rec8) 23. Kg2 {[%emt 0:00:01]} (23. Rfe2 $15) 23... Rc4 {[%emt 0:00:12]} (23... Re8 $17) 24. Qe3 {[%emt 0:00:06]} Qc5 {[%emt 0:00:12]} (24... h5 $15) 25. Qxc5 {[%emt 0:00:07]} ({White should play} 25. Qd3 $11) 25... R4xc5 $11 {[%emt 0:00:03][%mdl 4096] Endgame KRR-KRR} 26. d6 {[%emt 0:00:02]} (26. Kf3 $15) 26... Re5 {[%emt 0:00:03]} 27. Rfe2 {[%emt 0:00:03]} Rcc5 {[%emt 0:00:02]} 28. Rxe5 {[%emt 0:00:04]} Rxe5 $17 {[%emt 0:00:02] KR-KR} 29. c3 {[%emt 0:00:07]} bxc3 {[%emt 0:00:01]} 30. bxc3 {[%emt 0:00:01]} Kf7 {[%emt 0:00:03]} 31. c4 {[%emt 0:00:06]} Ke6 {[%emt 0:00:04]} 32. Kf3 {[%emt 0:00:07]} f5 {[%emt 0:00:01]} (32... g5 $17 33. Rd4 Re1) 33. h4 $1 $15 {[%emt 0:00:07]} g5 {[%emt 0:00:01]} 34. hxg5 {[%emt 0:00:02]} hxg5 {[%emt 0:00:01]} 35. Rd4 {[%emt 0:00:02]} Rc5 {[%emt 0:00:03]} 36. g4 {[%emt 0:00:03]} (36. Kf2 $15) 36... Ke5 {[%emt 0:00:06]} 37. Ke3 {[%emt 0:00:03]} f4+ {[%emt 0:00:42]} 38. Kd3 {[%emt 0:00:01]} Ke6 {[%emt 0:00:01]} 39. Ke4 $2 {[%emt 0:00:05][%mdl 8192] [#]} (39. Kc3 $17) 39... Rc6 $1 $19 {[%emt 0:00:04]} 40. Kf3 {[%emt 0:00:04]} Rxd6 {[%emt 0:00:05]} 41. Re4+ {[%emt 0:00:01]} Kf6 {[%emt 0:00:01]} 42. c5 {[%emt 0:00:01]} Rd3+ {[%emt 0:00:08]} 43. Kf2 {[%emt 0:00:01]} Rg3 {[%emt 0:00:02]} 44. Rd4 {[%emt 0:00:04]} Ke7 {[%emt 0:00:01]} 45. Rd5 $2 {[%emt 0:00:07]} (45. Re4+ Kf6 46. Rd4) 45... Rxg4 {[%emt 0:00:02]} 46. c6 {[%emt 0:00:01]} dxc6 {[%emt 0:00:01]} 47. Rxa5 {[%emt 0:00:01]} Rg3 {[%emt 0:00:06]} 48. Rf5 {[%emt 0:00:04]} Ke6 {[%emt 0:00:01]} 49. Rc5 {[%emt 0:00:01]} Kf6 {[%emt 0:00:12] And now ...Ra3 would win.} 50. a5 {[%emt 0:00:03]} Ra3 {[%emt 0:00:01] Weighted Error Value: White=0.84/Black=0.20 (precise)} 0-1

[Event "Susha Chess Blitz 2022"]
[Site "Shusha"]
[Date "2022.09.24"]
[Round "13"]
[White "Kasimdzhanov, Rustam"]
[Black "Vidit, Santosh Gujrathi"]
[Result "1-0"]
[ECO "B30"]
[WhiteElo "2670"]
[BlackElo "2710"]
[Annotator "TA"]
[PlyCount "139"]
[EventDate "2022.09.24"]
[EventType "tourn"]
[EventCountry "AZE"]
[SourceTitle "playchess.com"]
[Source "ChessBase"]
[SourceQuality "1"]
[TimeControl "180+2"]

{[%evp 9,139,15,62,62,59,10,16,15,17,10,11,-5,-6,-11,0,0,0,0,0,-2,6,0,11,-19,39,-6,0,-24,-12,-45,0,0,98,85,132,0,-4,-4,84,-68,157,153,283,252,321,239,261,267,318,277,277,277,297,292,261,174,177,176,175,106,103,13,22,0,0,0,0,0,0,0,142,138,135,46,46,0,135,121,212,218,210,182,225,216,285,285,267,250,285,279,276,275,267,264,253,179,247,240,4736,3395,29971,29972,29972,29973,29974,29963,29967,29968,29968,29967,29967,29968,29968,29968,29968,29969,29969,29970,29970,29969,29969,29970,29970,29971,29971,29972,29972,29973,29976,29977,29978,29979]} 1. e4 {[%emt 0:00:00]} c5 {[%emt 0:00:01]} 2. Nf3 {[%emt 0:00:02]} Nc6 {[%emt 0:00:01]} 3. Bb5 {[%emt 0:00:00]} e6 {[%emt 0:00:03]} 4. O-O {[%emt 0:00:02]} Nge7 {[%emt 0:00:01]} 5. Re1 {[%emt 0:00:02]} b6 {[%emt 0:00:03]} (5... a6 $11 6. Bxc6 Nxc6) 6. c3 $14 {[%emt 0:00:02] White is more active. B30: Sicilian: 2...Nc6 3 Bb5, lines without ...g6.} a6 {[%emt 0:00:01]} 7. Bf1 {[%emt 0:00:02]} (7. Ba4 $14 {was preferrable.}) 7... d5 {[%emt 0:00:07]} 8. exd5 {[%emt 0:00:05] The position is equal.} Nxd5 {[%emt 0:00:03]} 9. d4 {[%emt 0:00:01]} cxd4 {[%emt 0:00:07]} 10. cxd4 {[%emt 0:00:07]} Be7 {[%emt 0:00:04]} 11. Nc3 {[%emt 0:00:02]} O-O {[%emt 0:00:03] [#]} 12. Bd3 $146 {[%emt 0:00:08]} ({Predecessor:} 12. Bd2 Bb7 13. Rc1 Rc8 14. Bd3 Bf6 15. Qe2 Ndb4 16. Bb1 Nxd4 17. Nxd4 Bxd4 18. Ne4 Rxc1 19. Rxc1 {1-0 (42) Lamorelle,Y (2260)-Berthelot,Y (2270) France 1994}) 12... Bb7 {[%emt 0:00:06]} 13. Nxd5 {[%emt 0:00:14]} Qxd5 {[%emt 0:00:14]} 14. Be4 {[%emt 0:00:07]} Qd6 {[%emt 0:00:01]} 15. Be3 {[%emt 0:00:13]} Rfd8 {[%emt 0:00:12]} 16. h4 {[%emt 0:00:13]} h6 {[%emt 0:00:09]} (16... f5 $11 17. Bxc6 Bxc6) 17. a3 {[%emt 0:00:05][%cal Of3e5]} (17. Ne5 $5 Nxe5 18. Bxb7 $14) 17... Rac8 {[%emt 0:00:08]} 18. Rc1 {[%emt 0:00:01]} Bf6 {[%emt 0:00:22]} (18... f5 $5 {[%cal Rf5e4]} 19. Bc2 Na5 $11) 19. Qe2 {[%emt 0:00:17]} Qd7 {[%emt 0:00:24]} ({Much less strong is} 19... Nxd4 20. Bxd4 Rxc1 21. Rxc1 $14) 20. Rcd1 {[%emt 0:00:23]} Na5 {[%emt 0:00:19]} (20... Ne7 $11 21. Ne5 Qc7) 21. d5 $1 $16 {[%emt 0:00:21]} Qc7 {[%emt 0:00:22]} (21... exd5 $142 22. Bxb6 Qa4) 22. Rc1 {[%emt 0:00:21]} (22. Bd4 $1 $16) 22... Qd6 $11 {[%emt 0:00:02]} 23. b4 $132 {[%emt 0:00:10][%mdl 2048] [#] White is not holding back} exd5 {[%emt 0:00:04]} (23... Nc4 $1 $11 {remains equal.}) 24. Rxc8 $2 {[%emt 0:00:22]} (24. Bb1 $1 $16 {Hoping for Rxc8.} Nc4 25. Qd3) 24... Rxc8 $2 {[%emt 0:00:03]} (24... Bxc8 $15 {stays ahead.} 25. Bd3 Nc4) 25. Bf5 $16 {[%emt 0:00:03]} Re8 {[%emt 0:00:20]} (25... Nc4 $16 {was necessary.}) 26. bxa5 $18 {[%emt 0:00:03]} d4 {[%emt 0:00:01]} 27. Qd3 {[%emt 0:00:14]} Bxf3 {[%emt 0:00:19]} 28. gxf3 {[%emt 0:00:01]} bxa5 {[%emt 0:00:03]} 29. Bd2 {[%emt 0:00:02]} Rxe1+ {[%emt 0:00:01]} 30. Bxe1 {[%emt 0:00:01]} Bxh4 {[%emt 0:00:03]} 31. Bxa5 {[%emt 0:00:08]} g6 {[%emt 0:00:03]} 32. Bh3 {[%emt 0:00:02]} Qe5 {[%emt 0:00:03]} 33. Bd2 {[%emt 0:00:03]} Bg5 {[%emt 0:00:04]} 34. Bxg5 {[%emt 0:00:09]} ({White should try} 34. a4 $18) 34... Qxg5+ $16 {[%emt 0:00:01]} 35. Kf1 {[%emt 0:00:02]} (35. Bg2 $1 $16) 35... Qc1+ $11 {[%emt 0:00:01]} 36. Kg2 {[%emt 0:00:02]} (36. Ke2 $5 {[%cal Rd3d4]}) 36... Qg5+ {[%emt 0:00:01]} 37. Kh2 {[%emt 0:00:03]} Qf4+ {[%emt 0:00:02]} 38. Kg2 {[%emt 0:00:01]} Qg5+ $1 {[%emt 0:00:00]} 39. Kh1 {[%emt 0:00:02]} Qc1+ {[%emt 0:00:02]} (39... Qh4 $11 {keeps the balance.} 40. Kg2 Qg5+) 40. Bf1 $1 $16 {[%emt 0:00:02]} a5 {[%emt 0:00:01]} 41. Kg1 {[%emt 0:00:02]} (41. Kh2 $16) 41... Qg5+ $14 {[%emt 0:00:01]} 42. Kh2 {[%emt 0:00:02]} (42. Bg2 $1 $14 {deserves consideration.}) 42... Qf4+ {[%emt 0:00:01]} (42... Qh4+ $11 43. Kg1 Qg5+ 44. Bg2 Qc5) 43. Kh3 $1 $16 {[%emt 0:00:02] Black is on the road to losing.} Kg7 {[%emt 0:00:08]} (43... Kh7 $16 {keeps fighting.} 44. Qe4 Qc1) 44. Qe4 $18 {[%emt 0:00:01]} Qd6 {[%emt 0:00:02]} 45. a4 {[%emt 0:00:02]} Qd7+ {[%emt 0:00:01] [#]} 46. Kg2 $1 {[%emt 0:00:02] aiming for Qe5+.} Qxa4 {[%emt 0:00:01] [#]} 47. Qe5+ $1 {[%emt 0:00:01]} Kg8 {[%emt 0:00:02]} 48. Qd5 {[%emt 0:00:02]} Qb4 {[%emt 0:00:09]} 49. Bc4 {[%emt 0:00:01]} Qe7 {[%emt 0:00:01]} 50. Qxa5 {[%emt 0:00:02]} ({Weaker is} 50. Qxd4 a4 $16) 50... Qf6 {[%emt 0:00:02]} 51. Qd5 {[%emt 0:00:01]} Kg7 {[%emt 0:00:01]} 52. Qe4 {[%emt 0:00:02]} h5 {[%emt 0:00:03]} (52... Qg5+ $142 53. Qg4 Qe5) 53. f4 {[%emt 0:00:01]} g5 $2 {[%emt 0:00:06]} (53... Qd6 54. Bd5 Qb6) 54. Qe5 {[%emt 0:00:03]} gxf4 {[%emt 0:00:03]} 55. Qxf6+ {[%emt 0:00:03] White mates.} Kxf6 {[%emt 0:00:01] KB-KP} 56. Kh3 {[%emt 0:00:03]} Kg5 {[%emt 0:00:04]} 57. f3 {[%emt 0:00:04]} f6 {[%emt 0:00:01]} 58. Bd3 {[%emt 0:00:01]} f5 {[%emt 0:00:03]} 59. Bc2 {[%emt 0:00:01]} h4 {[%emt 0:00:02]} 60. Bd3 {[%emt 0:00:01]} Kh5 {[%emt 0:00:01]} 61. Bxf5 {[%emt 0:00:01] KB-K3P} Kg5 {[%emt 0:00:01]} 62. Bd3 Kh5 63. Kg2 {[%emt 0:00:03]} Kg5 {[%emt 0:00:00]} 64. Kh2 Kh5 {[%emt 0:00:01]} 65. Kg1 {[%emt 0:00:03]} Kg5 {[%emt 0:00:02]} 66. Bf1 {[%emt 0:00:01]} Kf5 {[%emt 0:00:03]} 67. Kf2 {[%emt 0:00:01]} Ke5 {[%emt 0:00:03]} 68. Ke2 {[%emt 0:00:01]} Kd5 {[%emt 0:00:01]} 69. Kd3 {[%emt 0:00:00]} Kc5 {[%emt 0:00:05]} 70. Ke4 {[%emt 0:00:01] Weighted Error Value: White=0.22 (precise) /Black=0.44} 1-0

[Event "Susha Chess Blitz 2022"]
[Site "Shusha"]
[Date "2022.09.24"]
[Round "13"]
[White "Guseinov, Gadir"]
[Black "Radjabov, Teimour"]
[Result "1/2-1/2"]
[ECO "B24"]
[WhiteElo "2661"]
[BlackElo "2747"]
[Annotator "TA"]
[PlyCount "31"]
[EventDate "2022.09.24"]
[EventType "tourn"]
[EventCountry "AZE"]
[SourceTitle "playchess.com"]
[Source "ChessBase"]
[SourceQuality "1"]
[TimeControl "180+2"]

{[%evp 15,31,13,12,0,18,19,41,13,21,33,20,18,41,53,62,0,0,0]} 1. e4 {[%emt 0:00:01]} c5 {[%emt 0:00:00]} 2. Nc3 {[%emt 0:00:03]} Nc6 {[%emt 0:00:01]} 3. Bb5 {[%emt 0:00:04]} e6 {[%emt 0:00:09]} 4. Bxc6 {[%emt 0:00:01]} bxc6 {[%emt 0:00:02]} 5. d3 {[%emt 0:00:04]} d5 {[%emt 0:00:02]} 6. Nf3 {[%emt 0:00:14]} Nf6 {[%emt 0:00:01]} 7. O-O {[%emt 0:00:02]} Be7 {[%emt 0:00:01]} 8. e5 {[%emt 0:00:06]} Nd7 {[%emt 0:00:03]} 9. Re1 {[%emt 0:00:01] B23: Closed Sicilian: Lines without g3.} Rb8 {[%emt 0:00:08] [#]} 10. Qe2 $146 {[%emt 0:00:13]} ({Predecessor:} 10. b3 Rb4 11. Ba3 Rg4 12. h3 Rg6 13. Na4 Qa5 14. c4 O-O 15. Bb2 Rd8 16. Bc3 {1-0 (81) Esenbek Uulu,I (2190)-Gillani,T (2266) Chess.com INT 2020}) 10... g5 {[%emt 0:00:06]} 11. Na4 {[%emt 0:00:27] White is slightly better.} g4 {[%emt 0:00:11]} 12. Nd2 {[%emt 0:00:01]} h5 {[%emt 0:00:01]} 13. b3 {[%emt 0:00:04]} Rg8 {[%emt 0:00:07]} 14. c4 {[%emt 0:00:03]} Nb6 {[%emt 0:00:48]} 15. Nxb6 {[%emt 0:00:18]} (15. Ba3 $14) 15... axb6 $11 {[%emt 0:00:04]} 16. Nf1 {[%emt 0:00:04] Weighted Error Value: White=0.18 (very precise) /Black=0.11 (very precise)} 1/2-1/2